{"text_format":"1","workbook":"xlsx","n_sheets":2,"sheets":["HF申込書(2016)","Sheet1"],"not_rendered":{"charts":0,"images":0,"macros":1,"external_links":0,"defined_names":10,"comments":1,"pivot_tables":0},"unopened":[],"bounds":{"document_bytes":16777216,"sheet_cells":100000,"rows_first":2000,"rows_last":500,"rows_between":2000,"halvings":0,"cell_chars":16384,"cell_head_chars":4096},"cells_cut":0,"cells_raw":0,"read":"whole","date_system":"1904"}

{"sheet":"HF申込書(2016)","index":0,"n_rows":73,"n_cols":28,"rows_kept":73,"cut":false,"hidden":false,"merged":[[72,0,72,4],[72,5,72,7],[70,0,71,4],[70,5,71,7],[21,1,21,2],[23,1,23,2],[24,1,24,2],[26,1,26,2],[29,3,29,5],[22,1,22,2],[29,6,29,8],[29,0,29,2],[25,1,25,2],[47,0,48,0],[50,0,51,0],[0,0,0,10],[5,0,5,10],[19,1,19,2],[20,1,20,2],[19,4,19,10],[62,9,63,9],[62,10,63,10],[64,9,65,9],[64,10,65,10],[58,0,61,8],[62,0,65,8],[58,10,59,10],[60,10,61,10],[58,9,59,9],[60,9,61,9],[66,9,67,9],[66,10,67,10],[68,9,69,9],[68,10,69,10],[66,0,69,6]]}
["第11回　JBGホースフェスティバル　申込書（メール用）"]
[]
["日本社会人団体馬術連盟事務局宛"]
["E-mail：shabaren@jbg.jp"]
[]
["※団体窓口の負担軽減や運営などの都合上、原則として個人単位のエントリーとさせていただきます。団体でまとめて申込む場合も、申込書は個人につき１ファイルでお願い致します。"]
["※ファイル名の「JBG_HF2016_name.xlsm」のnameの部分を出場者氏名に変更して下さい。"]
["※複数名のエントリーフィーをまとめて振り込む際は、必ず全員分の名前を振込元名に記入して下さい。"]
["　さらに、必ず社馬連事務局に全員分の名前をお知らせ下さい。"]
["※非会員の申し込みの場合には、所属団体記載欄に関係会員の氏名を記入してください。"]
["※保険付保の欄には「何らかのスポーツ団体傷害保険」の加入の有無を記入してください。"]
["※申込み方法の詳細については、「第11回JBGホースフェスティバル」サイト（http://www.jbg.jp/hf/）をご参照下さい。"]
["※社馬連加盟団体の会員であり、個人で社馬連騎乗者資格を有していないかたは会員/非会員にて\"会員（未登録）\"を選択してください"]
["※会員（社馬連資格未登録）または非会員で社馬連騎乗者資格に相当する資格を有しているかたは所有資格欄にて社馬連相当資格を選択してください"]
["※会員（社馬連資格未登録）または非会員で社馬連騎乗者資格に相当する資格を有していないかたは所有資格欄にて\"無\"を選択してください"]
["※この申込書は、「会員/非会員」,「所有資格」を入力する事で、自動的に入力制限が掛かりますのでご注意ください"]
["※競技馬の割り当てを行う際、体重を考慮させていただきますので、「70kg」を超過する方は、下記質問欄に記入をお願いします。"]
[]
["■出場者"]
["○氏名",null,null,null,"エントリー締切：6月10日（金）"]
["○フリガナ"]
["○性別",null,null,null,"★エントリーフィー振込先★"]
["○会員/非会員",null,null,null,"日本社会人団体馬術連盟"]
["○所属団体",null,null,null,"三井住友銀行　神田支店（普）１３００６９０"]
["○所有資格",null,null,null,"振込締切：6月24日（金）"]
["○連絡先E-mail"]
["○保険付保"]
[]
["■エントリー"]
[null,null,null,"会員",null,null,"非会員"]
["□７月２日（土）","競技名","複数参加","エントリー費","参加数","エントリー費","エントリー費","参加数","エントリー費","合計額","出場資格"]
["第１競技","グリーンカップ　部班速歩班","不可",3000,null,{"$f":"D32*E32","v":0},4500,null,{"$f":"G32*H32","v":0},{"$f":"F32+I32","v":0},"社馬連資格Ｃグレード相当以下",null,null,null,null,null,null,{"$f":"IF(COUNTIF($S32:$AB32,$B$25),\"○\",\"×\")","v":"×"},null,null,null,"Ｃ","Ｄ","Ｄ’",null,null,"社馬連Ｃ相当","無"]
["第２競技","グリーンカップ　部班駈歩班","不可",3000,null,0,4500,null,0,0,"社馬連資格Ｃグレード相当以下",null,null,null,null,null,null,"×",null,null,null,"Ｃ","Ｄ","Ｄ’",null,null,"社馬連Ｃ相当","無"]
["第３競技","グリーンカップ　JEF A2課目 2013","不可",6000,null,0,7500,null,0,0,"Cグレード相当、又はBグレード以下の保有者で社馬連主要競技（全日本社会人馬術選手権大会、キャロット自馬選手権）の出場実績がないこと",null,null,null,null,null,null,"×",null,null,"Ｂ’","Ｃ",null,null,null,"社馬連Ｂ’相当","社馬連Ｃ相当"]
["第４競技","JEF A3課目 2013（一般班/ビギナー班）","可",8000,null,{"$f":"D35*E35","v":0},9500,null,{"$f":"G35*H35","v":0},{"$f":"F35+I35","v":0},"Cグレード相当、又はB’グレードもしくはBグレードを保有していること",null,null,null,null,null,null,{"$f":"IF(COUNTIF($S35:$AB35,$B$25),\"○\",\"×\")","v":"×"},null,"Ｂ","Ｂ’","Ｃ",null,null,"社馬連Ｂ相当","社馬連Ｂ’相当","社馬連Ｃ相当"]
["第５競技","全日本社会人馬術選手権大会\n馬場馬術課目 2015（一般班）","可",9000,null,0,10500,null,0,0,"B’グレート相当、又はB’グレード以上を保有していること",null,null,null,null,null,null,{"$f":"IF(COUNTIF($S36:$AB36,$B$25),\"○\",\"×\")","v":"×"},"Ａ","Ｂ","Ｂ’",null,null,null,"社馬連Ｂ相当","社馬連Ｂ’相当"]
["第６競技","ジムカーナペアリレー","不可",3000,null,0,4500,null,0,0,"社馬連Cグレード相当以上。ペアでの出場が条件。男女でも同性でも可。",null,null,null,null,null,null,"×","Ａ","Ｂ","Ｂ’","Ｃ",null,null,"社馬連Ｂ相当","社馬連Ｂ’相当","社馬連Ｃ相当"]
["第７競技","パ・ドゥ・ドゥ","不可",8000,null,{"$f":"D38*E38","v":0},9500,null,{"$f":"G38*H38","v":0},{"$f":"F38+I38","v":0},"Cグレード相当以上が出場資格となります。ペアでの出場が条件。\n全国乗馬倶楽部振興協会制定　レベルI（仮装は不可）",null,null,null,null,null,null,"×","Ａ","Ｂ","Ｂ’","Ｃ",null,null,"社馬連Ｂ相当","社馬連Ｂ’相当","社馬連Ｃ相当"]
["□７月３日（日）","競技名","複数参加","エントリー費","参加数","エントリー費","エントリー費","参加数","エントリー費","合計額","出場資格"]
["第８競技","グリーンカップ　ジムカーナ速歩班","不可",3000,null,{"$f":"D40*E40","v":0},4500,null,{"$f":"G40*H40","v":0},{"$f":"F40+I40","v":0},"社馬連資格Ｃグレード相当以下",null,null,null,null,null,null,{"$f":"IF(COUNTIF($S40:$AB40,$B$25),\"○\",\"×\")","v":"×"},null,null,null,"Ｃ","Ｄ","Ｄ’",null,null,"社馬連Ｃ相当","無"]
["第９競技","グリーンカップ　ジムカーナ駈歩班","不可",3000,null,0,4500,null,0,0,"社馬連資格Ｃグレード相当以下",null,null,null,null,null,null,"×",null,null,null,"Ｃ","Ｄ","Ｄ’",null,null,"社馬連Ｃ相当","無"]
["第１０競技","グリーンカップ\n　　ビギナーズジャンプ60cm","不可",6000,null,0,7500,null,0,0,"Cグレード相当、又はB’グレード保有者",null,null,null,null,null,null,"×",null,null,"Ｂ’","Ｃ",null,null,null,"社馬連Ｂ’相当","社馬連Ｃ相当"]
["第１１競技","小障害飛越80cm（ビギナー班）","可",8000,null,0,9500,null,0,0,"B’グレード相当、又はBグレード保有者で社馬連主要競技（全日本社会人馬術選手権大会、キャロット自馬選手権、実業団戦）への出場実績がないこと",null,null,null,null,null,null,"×","Ａ","Ｂ","Ｂ’",null,null,null,"社馬連Ｂ相当","社馬連Ｂ’相当"]
["第１２競技","小障害飛越80cm（一般班）","可",8000,null,0,9500,null,0,0,"社馬連資格Ｂグレード相当以上",null,null,null,null,null,null,"×","Ａ","Ｂ","Ｂ’",null,null,null,"社馬連Ｂ相当","社馬連Ｂ’相当"]
["第１３競技","小障害飛越90cm","可",9000,null,{"$f":"D45*E45","v":0},10500,null,{"$f":"G45*H45","v":0},{"$f":"F45+I45","v":0},"社馬連資格Ｂグレード相当以上",null,null,null,null,null,null,{"$f":"IF(COUNTIF($S45:$AB45,$B$25),\"○\",\"×\")","v":"×"},"Ａ","Ｂ",null,null,null,null,"社馬連Ｂ相当"]
["第１４競技","ゴールデンカップ\n　　小障害飛越80cmペアリレー","不可",8000,null,0,9500,null,0,0,"男女ペア及び女女ペアの場合は４５歳以上を１名、男男ペアの場合は２名の合計が９０歳以上\nペア共に社馬連資格Ｂグレード相当以上",null,null,null,null,null,null,"×","Ａ","Ｂ",null,null,null,null,"社馬連Ｂ相当"]
[]
["参加費","1日のみ参加（2日か3日のみ参加）",null,2000,{"$f":"IF(OR(AND(COUNTA(E$32:E$38)>=1,COUNTA(E$40:E$46)=0),AND(COUNTA(E$32:E$38)=0,COUNTA(E$40:E$46)>=1)),1,0)","v":0},{"$f":"D48*E48","v":0},2000,{"$f":"IF(OR(AND(COUNTA(H$32:H$37)>=1,COUNTA(H$40:H$46)=0),AND(COUNTA(H$32:H$37)=0,COUNTA(H$40:H$46)>=1)),1,0)","v":0},{"$f":"G48*H48","v":0},{"$f":"F48+I48","v":0},"懇親会費は含みません"]
[null,"2日間参加（2日,3日とも参加）",null,3000,{"$f":"IF(AND(COUNTA(E$32:E$38)>=1,COUNTA(E$40:E$46)>=1),1,0)","v":0},{"$f":"D49*E49","v":0},3000,{"$f":"IF(AND(COUNTA(H$32:H$37)>=1,COUNTA(H$40:H$46)>=1),1,0)","v":0},{"$f":"G49*H49","v":0},{"$f":"F49+I49","v":0},"懇親会費を含みます"]
["懇親会費","懇親会費（2日開催）",null,1000,null,{"$f":"D50*E50","v":0},1000,null,{"$f":"G50*H50","v":0},{"$f":"F50+I50","v":0},"1日のみ参加で懇親会に参加される方は計上願います"]
["昼食弁当","昼食弁当（2日）",null,1000,null,{"$f":"D51*E51","v":0},1000,null,{"$f":"G51*H51","v":0},{"$f":"F51+I51","v":0}]
[null,"昼食弁当（3日）",null,1000,null,{"$f":"D52*E52","v":0},1000,null,{"$f":"G52*H52","v":0},{"$f":"F52+I52","v":0}]
[]
[null,null,null,"合計金額",null,null,null,null,null,{"$f":"SUM(J32:J52)","v":0},"←振込合計金額"]
[]
["※第6,7,14競技のエントリー費は1名分ですので、各自エントリー費を計上してください。"]
[]
["※お弁当を家族分など注文される方は購入個数をご記入下さい。"]
["　第６競技ジムカーナペアリレー参加者は、右の欄にペアの方の名前と所属を記入してください。",null,null,null,null,null,null,null,null,"氏名"]
[]
[null,null,null,null,null,null,null,null,null,"所属"]
[]
["　第７競技パ・ドゥ・ドゥ参加者は、右の欄にペアの方の名前と所属を記入してください。",null,null,null,null,null,null,null,null,"氏名"]
[]
[null,null,null,null,null,null,null,null,null,"所属"]
[]
["　第１４競技ゴールデンカップ小障害飛越80cmペアリレー参加者は、右の欄にペアの方の名前と所属を記入してください。",null,null,null,null,null,null,null,null,"氏名"]
[]
[null,null,null,null,null,null,null,null,null,"所属"]
[]
["　第４競技の JEF A3課目を希望する方については、\"一般班\"か\"ビギナー班\"か選択をお願いします"]
[]
["　体重が70kg以上ある方はチェックをお願いします"]

{"sheet":"Sheet1","index":1,"n_rows":7,"n_cols":11,"rows_kept":7,"cut":false,"hidden":false,"merged":[]}
[null,null,null,null,null,null,null,null,null,null,"体重制限"]
["Ａ","社馬連Ｂ相当","男",1,1,1,null,"会員","一般班",null,"✔"]
["Ｂ","社馬連Ｂ’相当","女",2,2,null,null,"会員（社馬連資格未登録）","ビギナー班"]
["Ｂ’","社馬連Ｃ相当",null,3,null,null,null,"非会員"]
["Ｃ","無",null,4]
["Ｄ",null,null,5]
["Ｄ’"]